fUST/lending_fUST_20250427
["ID","MTS","AMOUNT","RATE_DAILY","PERIOD"]
[359121348,1745717438908,-400.0,0.00016438,2]
[359121349,1745717438918,-499.74479895,0.00016438,2]
[359121350,1745717438927,-400.0,0.00016438,2]
[359121351,1745717438937,-400.0,0.00016438,2]
[359121352,1745717438946,-400.0,0.00016438,2]
[359121353,1745717438956,-400.0,0.00016438,2]
[359121354,1745717438965,-400.0,0.00016438,2]
[359121355,1745717438975,-400.0,0.00016438,2]
[359121356,1745717438984,-400.0,0.00016438,2]
[359121357,1745717438993,-400.0,0.00016438,2]
[359121358,1745717439003,-400.0,0.00016438,2]
[359121359,1745717439013,-200.0,0.00016438,2]
[359121360,1745717439022,-400.0,0.00016438,2]
[359121361,1745717439032,-500.0,0.00016438,2]
[359121362,1745717439041,-400.0,0.00016438,2]
[359121363,1745717439050,-400.0,0.00016438,2]
[359121364,1745717439060,-400.0,0.00016438,2]
[359121365,1745717439070,-400.0,0.00016438,2]
[359121366,1745717439079,-400.0,0.00016438,2]
[359121367,1745717439088,-400.0,0.00016438,2]
[359121368,1745717439098,-400.0,0.00016438,2]
[359121369,1745717439108,-400.0,0.00016438,2]
[359121370,1745717439117,-400.0,0.00016438,2]
[359121371,1745717439128,-400.0,0.00016438,2]
[359121372,1745717439137,-400.0,0.00016438,2]
[359121373,1745717439147,-474.97,0.00016438,2]
[359121374,1745717439157,-400.0,0.00016438,2]
[359121375,1745717439167,-400.0,0.00016438,2]
[359121376,1745717439178,-400.0,0.00016438,2]
[359121377,1745717439189,-500.0,0.00016438,2]
[359121378,1745717439199,-400.0,0.00016438,2]
[359121379,1745717439210,-400.0,0.00016438,2]
[359121380,1745717439220,-500.0,0.00016438,2]
[359121381,1745717439230,-500.0,0.00016438,2]
[359121382,1745717439240,-400.0,0.00016438,2]
[359121383,1745717439249,-400.0,0.00016438,2]
[359121384,1745717439259,-400.0,0.00016438,2]
[359121385,1745717439270,-400.0,0.00016438,2]
[359121386,1745717439280,-500.0,0.00016438,2]
[359121387,1745717439301,-400.0,0.00016438,2]
[359121388,1745717439313,-400.0,0.00016438,2]
[359121389,1745717439324,-400.0,0.00016438,2]
[359121390,1745717439334,-400.0,0.00016438,2]
[359121391,1745717439347,-400.0,0.00016438,2]
[359121392,1745717439359,-400.0,0.00016438,2]
[359121393,1745717439370,-400.0,0.00016438,2]
[359121394,1745717439380,-400.0,0.00016438,2]
[359121395,1745717439391,-401.62,0.00016438,2]
[359121396,1745717439406,-400.0,0.00016438,2]
[359121397,1745717439417,-200.0,0.00016438,2]
[359121398,1745717439427,-500.0,0.00016438,2]
[359121399,1745717439437,-400.0,0.00016438,2]
[359121400,1745717439447,-400.0,0.00016438,2]
[359121401,1745717439458,-311.2628891,0.00016438,2]
[359121402,1745717439468,-400.0,0.00016438,2]
[359121403,1745717439479,-1102.93,0.00016438,2]
[359121404,1745717439491,-400.0,0.00016438,2]
[359121405,1745717439501,-500.0,0.00016438,2]
[359121406,1745717439511,-466.43,0.00016438,2]
[359121407,1745717439521,-400.0,0.00016438,2]
[359121408,1745717439534,-500.0,0.00016438,2]
[359121409,1745717439546,-400.0,0.00016438,2]
[359121410,1745717439558,-500.0,0.00016438,2]
[359121411,1745717439568,-400.0,0.00016438,2]
[359121412,1745717439579,-500.0,0.00016438,2]
[359121413,1745717439589,-400.0,0.00016438,2]
[359121414,1745717439599,-400.0,0.00016438,2]
[359121415,1745717439610,-400.0,0.00016438,2]
[359121416,1745717439619,-400.0,0.00016438,2]
[359121417,1745717439638,-400.0,0.00016438,2]
[359121418,1745717439648,-404.42315695,0.00016438,2]
[359121419,1745717439658,-400.0,0.00016438,2]
[359121420,1745717439668,-519.85296717,0.00016438,2]
[359121421,1745717439678,-400.0,0.00016438,2]
[359121422,1745717439688,-505.81814659,0.00016438,2]
[359121423,1745717439700,-400.0,0.00016438,2]
[359121424,1745717439711,-400.0,0.00016438,2]
[359121425,1745717439724,-500.0,0.00016473,2]
[359121426,1745717439735,-503.34520186,0.00016473,2]
[359121427,1745717439745,-500.0,0.00016473,2]
[359121428,1745717439756,-164.18728358,0.00016612,2]
[359121429,1745717439767,-300.0,0.00016711,2]
[359121431,1745717439778,-400.0,0.00016711,2]
[359121433,1745717439788,-300.0,0.00016711,2]
[359121434,1745717439798,-400.0,0.00016711,2]
[359121435,1745717439809,-400.0,0.00016711,2]
[359121436,1745717439819,-500.0,0.00016711,2]
[359121437,1745717439831,-500.0,0.00016711,2]
[359121438,1745717439841,-400.0,0.00016711,2]
[359121439,1745717439852,-400.0,0.00016711,2]
[359121441,1745717439863,-400.0,0.00016711,2]
[359121442,1745717439873,-500.0,0.00016711,2]
[359121443,1745717439883,-400.0,0.00016711,2]
[359121444,1745717439895,-400.0,0.00016711,2]
[359121445,1745717439906,-500.0,0.00016711,2]
[359121446,1745717439917,-500.0,0.00016711,2]
[359121447,1745717439927,-400.0,0.00016711,2]
[359121448,1745717439937,-500.0,0.00016711,2]
[359121449,1745717439946,-500.0,0.00016711,2]
[359121450,1745717439958,-530.88,0.00016711,2]
[359121451,1745717439969,-400.0,0.00016711,2]
[359121452,1745717439981,-502.96579055,0.00016711,2]
[359121453,1745717439992,-400.0,0.00016712,2]
[359121454,1745717440002,-500.0,0.00016712,2]
[359121455,1745717440012,-400.0,0.00016712,2]
[359121456,1745717440023,-400.0,0.00016712,2]
[359121457,1745717440033,-400.0,0.00016712,2]
[359121458,1745717440043,-400.0,0.00016712,2]
[359121459,1745717440053,-376.48,0.00016712,2]
[359121460,1745717440063,-373.8605618,0.00016712,2]
[359121461,1745717440073,-400.0,0.00016712,2]
[359121462,1745717440083,-400.0,0.00016712,2]
[359121463,1745717440092,-400.0,0.00016712,2]
[359121464,1745717440102,-400.0,0.00016712,2]
[359121465,1745717440114,-400.0,0.00016712,2]
[359121466,1745717440123,-400.0,0.00016712,2]
[359121467,1745717440134,-400.0,0.00016712,2]
[359121468,1745717440144,-400.0,0.00016712,2]
[359121469,1745717440153,-400.0,0.00016712,2]
[359121470,1745717440163,-427.78,0.00016712,2]
[359121471,1745717440173,-400.0,0.00016712,2]
[359121472,1745717440183,-400.0,0.00016712,2]
[359121473,1745717440192,-200.0,0.00016712,2]
[359121474,1745717440203,-400.0,0.00016712,2]
[359121475,1745717440213,-400.0,0.00016712,2]
[359121476,1745717440223,-400.0,0.00016712,2]
[359121477,1745717440233,-400.0,0.00016712,2]
[359121478,1745717440243,-400.0,0.00016712,2]
[359121479,1745717440253,-400.0,0.00016712,2]
[359121480,1745717440263,-400.0,0.00016712,2]
[359121481,1745717440273,-400.0,0.00016712,2]
[359121482,1745717440282,-200.0,0.00016712,2]
[359121483,1745717440293,-400.0,0.00016712,2]
[359121484,1745717440303,-400.0,0.00016712,2]
[359121485,1745717440313,-400.0,0.00016712,2]
[359121486,1745717440322,-400.0,0.00016712,2]
[359121487,1745717440332,-400.0,0.00016712,2]
[359121488,1745717440341,-400.0,0.00016712,2]
[359121489,1745717440351,-400.0,0.00016712,2]
[359121490,1745717440361,-400.0,0.00016712,2]
[359121491,1745717440371,-400.0,0.00016712,2]
[359121492,1745717440381,-400.0,0.00016712,2]
[359121493,1745717440390,-400.0,0.00016712,2]
[359121494,1745717440404,-400.0,0.00016712,2]
[359121495,1745717440413,-400.0,0.00016712,2]
[359121497,1745717440423,-400.0,0.00016712,2]
[359121498,1745717440432,-500.0,0.00016712,2]
[359121500,1745717440442,-400.0,0.00016712,2]
[359121502,1745717440451,-400.0,0.00016712,2]
[359121504,1745717440461,-400.0,0.00016712,2]
[359121505,1745717440471,-400.0,0.00016712,2]
[359121506,1745717440480,-400.0,0.00016712,2]
[359121507,1745717440491,-400.0,0.00016712,2]
[359121508,1745717440501,-400.0,0.00016712,2]
[359121510,1745717440511,-401.62,0.00016712,2]
[359121512,1745717440521,-400.0,0.00016712,2]
[359121514,1745717440532,-400.0,0.00016712,2]
[359121516,1745717440542,-400.0,0.00016712,2]
[359121518,1745717440551,-400.0,0.00016712,2]
[359121520,1745717440561,-1102.93,0.00016712,2]
[359121522,1745717440571,-542.98,0.00016712,2]
[359121524,1745717440580,-466.43,0.00016712,2]
[359121526,1745717440591,-400.0,0.00016712,2]
[359121527,1745717440602,-400.0,0.00016712,2]
[359121528,1745717440614,-400.0,0.00016712,2]
[359121529,1745717440624,-400.0,0.00016712,2]
[359121530,1745717440633,-164.62177903,0.00016712,2]
[359121531,1745717440643,-400.0,0.00016712,2]
[359121532,1745717440654,-400.0,0.00016712,2]
[359121533,1745717440665,-511.53697702,0.00016712,2]
[359121534,1745717440677,-400.0,0.00016712,2]
[359121535,1745717440687,-400.0,0.00016712,2]
[359121536,1745717440697,-400.0,0.00016712,2]
[359121537,1745717440708,-400.0,0.00016712,2]
[359121538,1745717440718,-500.0,0.00016844,2]
[359121539,1745717440727,-500.0,0.00016844,2]
[359121540,1745717440737,-500.0,0.00016844,2]
[359121541,1745717440747,-500.0,0.00016844,2]
[359121542,1745717440756,-500.0,0.00016844,2]
[359121543,1745717440766,-504.36758125,0.00016894,2]
[359121544,1745717440776,-500.0,0.00016894,2]
[359121545,1745717440785,-500.0,0.00016894,2]
[359121546,1745717440795,-307.23190155,0.000169,2]
[359121547,1745717440805,-420.0,0.00016942,2]
[359121548,1745717440815,-400.0,0.00016985,2]
[359121549,1745717440824,-447.05,0.00016985,2]
[359121550,1745717440834,-200.0,0.00016985,2]
[359121551,1745717440843,-400.0,0.00016985,2]
[359121552,1745717440854,-400.0,0.00016985,2]
[359121553,1745717440867,-400.0,0.00016985,2]
[359121554,1745717440877,-209.61,0.00016985,2]
[359121555,1745717440886,-400.0,0.00016985,2]
[359121556,1745717440896,-189.73,0.00016985,2]
[359121557,1745717440906,-400.0,0.00016986,2]
[359121558,1745717440916,-200.0,0.00016986,2]
[359121559,1745717440927,-400.0,0.00016986,2]
[359121560,1745717440937,-389.04,0.00016986,2]
[359121561,1745717440948,-400.0,0.00016986,2]
[359121562,1745717440958,-295.56,0.00016986,2]
[359121563,1745717440968,-400.0,0.00016986,2]
[359121564,1745717440978,-400.0,0.00016986,2]
[359121565,1745717440988,-400.0,0.00016986,2]
[359121566,1745717440998,-200.0,0.00016986,2]
[359121567,1745717441009,-400.0,0.00016986,2]
[359121568,1745717441019,-400.0,0.00016986,2]
[359121569,1745717441029,-400.0,0.00016986,2]
[359121570,1745717441039,-400.0,0.00016986,2]
[359121571,1745717441050,-475.76,0.00016986,2]
[359121572,1745717441060,-200.0,0.00016986,2]
[359121573,1745717441070,-400.0,0.00016986,2]
[359121574,1745717441079,-400.0,0.00016986,2]
[359121575,1745717441089,-400.0,0.00016986,2]
[359121576,1745717441098,-400.0,0.00016986,2]
[359121577,1745717441109,-400.0,0.00016986,2]
[359121578,1745717441123,-200.0,0.00016986,2]
[359121579,1745717441133,-500.0,0.00016986,2]
[359121580,1745717441143,-400.0,0.00016986,2]
[359121581,1745717441153,-400.0,0.00016986,2]
[359121582,1745717441164,-200.0,0.00016986,2]
[359121583,1745717441174,-200.0,0.00016986,2]
[359121584,1745717441190,-400.0,0.00016986,2]
[359121585,1745717441201,-400.0,0.00016986,2]
[359121586,1745717441211,-400.0,0.00016986,2]
[359121587,1745717441221,-400.0,0.00016986,2]
[359121588,1745717441230,-400.0,0.00016986,2]
[359121589,1745717441241,-400.0,0.00016986,2]
[359121590,1745717441250,-400.0,0.00016986,2]
[359121591,1745717441261,-400.0,0.00016986,2]
[359121592,1745717441271,-400.0,0.00016986,2]
[359121593,1745717441282,-400.0,0.00016986,2]
[359121594,1745717441292,-400.0,0.00016986,2]
[359121595,1745717441303,-400.0,0.00016986,2]
[359121596,1745717441313,-400.0,0.00016986,2]
[359121597,1745717441323,-400.0,0.00016986,2]
[359121598,1745717441336,-400.0,0.00016986,2]
[359121599,1745717441346,-507.19,0.00016986,2]
[359121600,1745717441357,-432.55,0.00016986,2]
[359121601,1745717441370,-401.62,0.00016986,2]
[359121602,1745717441380,-400.0,0.00016986,2]
[359121603,1745717441390,-400.0,0.00016986,2]
[359121604,1745717441403,-400.0,0.00016986,2]
[359121605,1745717441413,-400.0,0.00016986,2]
[359121606,1745717441423,-1102.93,0.00016986,2]
[359121607,1745717441433,-466.43,0.00016986,2]
[359121608,1745717441442,-400.0,0.00016986,2]
[359121609,1745717441452,-200.0,0.00016986,2]
[359121610,1745717441462,-400.0,0.00016986,2]
[359121611,1745717441473,-400.0,0.00016986,2]
[359121612,1745717441483,-400.0,0.00016986,2]
[359121613,1745717441492,-505.03724251,0.00016986,2]
[359121614,1745717441502,-188.0078335,0.00016986,2]
[359121615,1745717441512,-400.0,0.00016986,2]
[359121616,1745717441522,-156.42119105,0.00016986,2]
[359121617,1745717441532,-400.0,0.00016986,2]
[359121618,1745717441542,-500.0,0.00017039,2]
[359121619,1745717441552,-160.0,0.00017211,2]
[359121620,1745717441562,-160.0,0.00017211,2]
[359121621,1745717441572,-160.0,0.00017212,2]
[359121622,1745717441582,-840.35238838,0.00017212,2]
[359121623,1745717441592,-160.0,0.00017212,2]
[359121624,1745717441602,-421.06755229,0.00017212,2]
[359121625,1745717441612,-12582.09293779,0.00017212,2]
[359121626,1745717441622,-425.76,0.0001725,3]
[359121627,1745717441632,-388.91,0.00017259,2]
[359121628,1745717441641,-247.43814146,0.00017259,2]
[359121629,1745717441652,-400.0,0.00017259,2]
[359121630,1745717441661,-531.14,0.00017259,2]
[359121631,1745717441672,-200.0,0.0001726,2]
[359121632,1745717441682,-308.80044939,0.0001726,2]
[359121633,1745717441691,-400.0,0.0001726,2]
[359121634,1745717441701,-443.81497663,0.0001726,2]
[359121635,1745717441711,-400.0,0.0001726,2]
[359121636,1745717441721,-378.07,0.0001726,2]
[359121637,1745717441732,-400.0,0.0001726,2]
[359121638,1745717441742,-400.0,0.0001726,2]
[359121639,1745717441752,-243.43,0.0001726,2]
[359121640,1745717441761,-221.87,0.0001726,2]
[359121641,1745717441771,-400.0,0.0001726,2]
[359121642,1745717441782,-400.0,0.0001726,2]
[359121643,1745717441792,-242.60378178,0.0001726,2]
[359121644,1745717441802,-500.0,0.0001726,2]
[359121645,1745717441813,-300.0,0.0001726,2]
[359121646,1745717441823,-400.0,0.0001726,2]
[359121647,1745717441834,-525.59,0.0001726,2]
[359121648,1745717441844,-400.0,0.0001726,2]
[359121649,1745717441855,-300.0,0.0001726,2]
[359121650,1745717441866,-400.0,0.0001726,2]
[359121651,1745717441876,-400.0,0.0001726,2]
[359121652,1745717441887,-400.0,0.0001726,2]
[359121653,1745717441896,-400.0,0.0001726,2]
[359121654,1745717441906,-485.51,0.0001726,2]
[359121655,1745717441917,-400.0,0.0001726,2]
[359121656,1745717441926,-400.0,0.0001726,2]
[359121657,1745717441937,-206.3,0.0001726,2]
[359121658,1745717441950,-400.0,0.0001726,2]
[359121659,1745717441960,-400.0,0.0001726,2]
[359121660,1745717441969,-400.0,0.0001726,2]
[359121661,1745717441980,-400.0,0.0001726,2]
[359121662,1745717441990,-401.62,0.0001726,2]
[359121663,1745717441999,-400.0,0.0001726,2]
[359121664,1745717442009,-400.0,0.0001726,2]
[359121665,1745717442019,-400.0,0.0001726,2]
[359121666,1745717442029,-400.0,0.0001726,2]
[359121667,1745717442040,-1102.93,0.0001726,2]
[359121668,1745717442051,-466.43,0.0001726,2]
[359121669,1745717442061,-400.0,0.0001726,2]
[359121670,1745717442070,-400.0,0.0001726,2]
[359121671,1745717442081,-400.0,0.0001726,2]
[359121672,1745717442092,-400.0,0.0001726,2]
[359121673,1745717442102,-400.0,0.0001726,2]
[359121674,1745717442114,-400.0,0.0001726,2]
[359121675,1745717442123,-400.0,0.00017533,2]
[359121676,1745717442134,-400.0,0.00017534,2]
[359121677,1745717442143,-400.0,0.00017534,2]
[359121678,1745717442302,-538.64,0.00017534,2]
[359121679,1745717442313,-400.0,0.00017534,2]
[359121680,1745717442323,-438.66,0.00017534,2]
[359121681,1745717442333,-200.0,0.00017534,2]
[359121682,1745717442343,-400.0,0.00017534,2]
[359121683,1745717442353,-400.0,0.00017534,2]
[359121684,1745717442365,-400.0,0.00017534,2]
[359121685,1745717442375,-279.52,0.00017534,2]
[359121686,1745717442386,-442.41,0.00017534,2]
[359121687,1745717442395,-400.0,0.00017534,2]
[359121688,1745717442406,-400.0,0.00017534,2]
[359121689,1745717442418,-400.0,0.00017534,2]
[359121690,1745717442429,-400.0,0.00017534,2]
[359121691,1745717442439,-400.0,0.00017534,2]
[359121692,1745717442449,-400.0,0.00017534,2]
[359121693,1745717442459,-400.0,0.00017534,2]
[359121694,1745717442469,-401.62,0.00017534,2]
[359121695,1745717442480,-400.0,0.00017534,2]
[359121696,1745717442491,-400.0,0.00017534,2]
[359121697,1745717442501,-400.0,0.00017534,2]
[359121698,1745717442511,-400.0,0.00017534,2]
[359121699,1745717442521,-1102.93,0.00017534,2]
[359121700,1745717442531,-466.43,0.00017534,2]
[359121701,1745717442540,-400.0,0.00017534,2]
[359121702,1745717442550,-400.0,0.00017534,2]
[359121703,1745717442560,-240.08190243,0.00017534,2]
[359121704,1745717442570,-400.0,0.00017534,2]
[359121705,1745717442580,-400.0,0.00017534,2]
[359121706,1745717442591,-400.0,0.00017534,2]
[359121707,1745717442602,-760.21363292,0.00017691,2]
[359121708,1745717442611,-307.23190146,0.00017693,2]
[359121709,1745717442621,-400.0,0.00017807,2]
[359121710,1745717442631,-400.0,0.00017808,2]
[359121711,1745717442641,-200.0,0.00017808,2]
[359121712,1745717442651,-400.0,0.00017808,2]
[359121713,1745717442661,-400.0,0.00017808,2]
[359121714,1745717442670,-400.0,0.00017808,2]
[359121715,1745717442679,-400.0,0.00017808,2]
[359121716,1745717442689,-400.0,0.00017808,2]
[359121717,1745717442699,-400.0,0.00017808,2]
[359121718,1745717442708,-174.11110937,0.00017808,2]
[359121719,1745717442719,-400.0,0.00017808,2]
[359121720,1745717442729,-384.51310162,0.00017808,2]
[359121721,1745717442738,-240.02,0.00017808,2]
[359121722,1745717442748,-401.62,0.00017808,2]
[359121723,1745717442757,-400.0,0.00017808,2]
[359121724,1745717442767,-400.0,0.00017808,2]
[359121725,1745717442776,-208.96253064,0.00017808,2]
[359121727,1745717442786,-400.0,0.00017808,2]
[359121730,1745717442795,-1102.93,0.00017808,2]
[359121731,1745717442804,-466.43,0.00017808,2]
[359121732,1745717442814,-400.0,0.00017808,2]
[359121733,1745717442823,-400.0,0.00017808,2]
[359121734,1745717442833,-276.29788666,0.00017808,2]
[359121735,1745717442842,-400.0,0.00017808,2]
[359121736,1745717442852,-400.0,0.00017808,2]
[359121737,1745717442862,-400.0,0.00018081,2]
[359121738,1745717442873,-400.0,0.00018082,2]
[359121739,1745717442883,-400.0,0.00018082,2]
[359121741,1745717442893,-400.0,0.00018082,2]
[359121744,1745717442903,-418.26,0.00018082,2]
[359121748,1745717442912,-400.0,0.00018082,2]
[359121751,1745717442922,-400.0,0.00018082,2]
[359121753,1745717442932,-400.0,0.00018082,2]
[359121755,1745717442941,-400.0,0.00018082,2]
[359121756,1745717442951,-401.62,0.00018082,2]
[359121757,1745717442960,-400.0,0.00018082,2]
[359121758,1745717442970,-400.0,0.00018082,2]
[359121759,1745717442982,-1102.93,0.00018082,2]
[359121760,1745717442991,-466.43,0.00018082,2]
[359121761,1745717443000,-400.0,0.00018082,2]
[359121762,1745717443010,-400.0,0.00018082,2]
[359121763,1745717443020,-400.0,0.00018082,2]
[359121764,1745717443030,-400.0,0.00018082,2]
[359121765,1745717443040,-400.0,0.00018355,2]
[359121766,1745717443049,-400.0,0.00018356,2]
[359121767,1745717443059,-400.0,0.00018356,2]
[359121768,1745717443069,-400.0,0.00018356,2]
[359121769,1745717443079,-400.0,0.00018356,2]
[359121770,1745717443089,-400.0,0.00018356,2]
[359121772,1745717443098,-400.0,0.00018356,2]
[359121774,1745717443108,-400.0,0.00018356,2]
[359121776,1745717443119,-401.62,0.00018356,2]
[359121777,1745717443129,-400.0,0.00018356,2]
[359121778,1745717443139,-400.0,0.00018356,2]
[359121779,1745717443149,-1102.93,0.00018356,2]
[359121780,1745717443159,-466.43,0.00018356,2]
[359121781,1745717443168,-400.0,0.00018356,2]
[359121782,1745717443179,-400.0,0.00018356,2]
[359121783,1745717443189,-400.0,0.00018356,2]
[359121784,1745717443199,-172.95541272,0.00018356,2]
[359121785,1745717443209,-307.23190146,0.00018486,2]
[359121786,1745717443219,-400.0,0.00018629,2]
[359121787,1745717443229,-475.06479738,0.0001863,2]
[359121788,1745717443238,-400.0,0.0001863,2]
[359121789,1745717443248,-400.0,0.0001863,2]
[359121790,1745717443258,-400.0,0.0001863,2]
[359121791,1745717443269,-400.0,0.0001863,2]
[359121792,1745717443279,-400.0,0.0001863,2]
[359121793,1745717443289,-400.0,0.0001863,2]
[359121794,1745717443299,-401.62,0.0001863,2]
[359121795,1745717443308,-400.0,0.0001863,2]
[359121796,1745717443318,-400.0,0.0001863,2]
[359121797,1745717443328,-1102.93,0.0001863,2]
[359121798,1745717443338,-466.43,0.0001863,2]
[359121799,1745717443348,-400.0,0.0001863,2]
[359121800,1745717443358,-400.0,0.0001863,2]
[359121801,1745717443369,-400.0,0.0001863,2]
[359121802,1745717443379,-400.0,0.00018903,2]
[359121803,1745717443389,-400.0,0.00018904,2]
[359121804,1745717443399,-400.0,0.00018904,2]
[359121805,1745717443411,-400.0,0.00018904,2]
[359121806,1745717443420,-400.0,0.00018904,2]
[359121807,1745717443430,-400.0,0.00018904,2]
[359121808,1745717443440,-400.0,0.00018904,2]
[359121809,1745717443450,-401.62,0.00018904,2]
[359121810,1745717443460,-400.0,0.00018904,2]
[359121811,1745717443470,-400.0,0.00018904,2]
[359121813,1745717443480,-1102.93,0.00018904,2]
[359121814,1745717443489,-466.43,0.00018904,2]
[359121816,1745717443500,-400.0,0.00018904,2]
[359121819,1745717443509,-400.0,0.00018904,2]
[359121821,1745717443519,-400.0,0.00018904,2]
[359121823,1745717443530,-400.0,0.00019177,2]
[359121825,1745717443540,-400.0,0.00019178,2]
[359121826,1745717443550,-400.0,0.00019178,2]
[359121828,1745717443560,-400.0,0.00019178,2]
[359121829,1745717443569,-400.0,0.00019178,2]
[359121831,1745717443579,-400.0,0.00019178,2]
[359121832,1745717443588,-400.0,0.00019178,2]
[359121834,1745717443598,-401.62,0.00019178,2]
[359121836,1745717443608,-400.0,0.00019178,2]
[359121837,1745717443619,-400.0,0.00019178,2]
[359121839,1745717443629,-1102.93,0.00019178,2]
[359121841,1745717443639,-466.43,0.00019178,2]
[359121842,1745717443648,-400.0,0.00019178,2]
[359121844,1745717443658,-400.0,0.00019178,2]
[359121846,1745717443668,-400.0,0.00019178,2]
[359121848,1745717443677,-300.0,0.00019178,2]
[359121849,1745717443687,-307.23190146,0.00019279,2]
[359121850,1745717443698,-179.9640072,0.00019283,2]
[359121851,1745717443708,-400.0,0.00019451,2]
[359121852,1745717443718,-400.0,0.00019452,2]
[359121853,1745717443727,-400.0,0.00019452,2]
[359121854,1745717443738,-400.0,0.00019452,2]
[359121855,1745717443747,-400.0,0.00019452,2]
[359121856,1745717443757,-400.0,0.00019452,2]
[359121857,1745717443767,-400.0,0.00019452,2]
[359121858,1745717443777,-401.62,0.00019452,2]
[359121859,1745717443787,-400.0,0.00019452,2]
[359121860,1745717443797,-400.0,0.00019452,2]
[359121861,1745717443806,-1102.93,0.00019452,2]
[359121862,1745717443816,-466.43,0.00019452,2]
[359121863,1745717443826,-400.0,0.00019452,2]
[359121864,1745717443835,-400.0,0.00019452,2]
[359121865,1745717443845,-400.0,0.00019452,2]
[359121866,1745717443855,-400.0,0.00019725,2]
[359121867,1745717443866,-400.0,0.00019726,2]
[359121868,1745717443876,-400.0,0.00019726,2]
[359121869,1745717443886,-400.0,0.00019726,2]
[359121870,1745717443896,-400.0,0.00019726,2]
[359121871,1745717443906,-257.59907973,0.00019726,2]
[359121872,1745717443916,-395.80318024,0.00019726,2]
[359121873,1745717443925,-401.62,0.00019726,2]
[359121874,1745717443936,-400.0,0.00019726,2]
[359121875,1745717443946,-400.0,0.00019726,2]
[359121876,1745717443955,-1102.93,0.00019726,2]
[359121877,1745717443966,-466.43,0.00019726,2]
[359121878,1745717443976,-476.02056036,0.00019726,2]
[359121879,1745717443986,-400.0,0.00019726,2]
[359121880,1745717443996,-400.0,0.00019726,2]
[359121881,1745717444006,-164.18728357,0.000199,2]
[359121882,1745717444016,-400.0,0.00019999,2]
[359121884,1745717444026,-65302.89460024,0.0002,2]
[359121888,1745717444139,-981.88026558,0.0002,2]
[359121889,1745717444151,-752.55185998,0.0002,2]
[359121890,1745717444224,-277.74875736,0.00016336,2]
[359121891,1745717444234,-400.0,0.00016438,2]
[359121892,1745717444244,-400.0,0.00016712,2]
[359121893,1745717444255,-400.0,0.00016986,2]
[359121894,1745717444265,-196.82895023,0.0001726,2]
[359121895,1745717444276,-203.17104977,0.0001726,2]
[359121896,1745717444286,-519.52693475,0.00017534,2]
[359121897,1745717444296,-98872.3923658,0.0002,2]
[359121898,1745717444316,-366.45182833,0.0002,2]
[359121927,1745717446345,-400.0,0.00016438,2]